Workbook

Sheet AJUDA
A1: TABELA
A2: EMPRESA
A3: AUTÔNOMO
A4: DADOS DO RECIBO | B4: PRECISO DE AJUDA!!!!! PARA MELHORA DA VERSÃO......
A5: RECIBO
A6: SUGESTÕES (angelo.tonon@ig.com.br)
A7: COLABORE!!!!!! USO GRATUITO DÊ SUA SUGESTÃO
A10: AJUDA AO PROGRAMA DE CÁLCULO DO RECIBO DE CONTRIBUINTE INDIVIDUAL
A11: USUÁRIO DESTE PROGRAMA DEVE ATIVAR MACROS AO ABRIR A PLANILHA
A12: usuário do WINDOWS XP - configure sua máquina - entre no menu ferramentas
A13: clique "macros" , clique "segurança" e mude para "médio"
A14: Todas as planilhas deste programa, estão protegidas com senha de segurança (proteção dos cálculos) - Você não precisa de senha. A senha é uma segurança para não eliminar as formulas de cálculos existentes nas planilhas
A16: VERSÃO 1.0 desenvolvida exclusivamente para aplicativo (Microsoft Excel).
A17: Não usar no aplicativo (OpenOffice) - Pois não consegue efetuar alguns cálculos do programa.
A18: PLANILHA "TABELA" e " RECIBO", manutenção somente nos campos em BRANCOS
A19: Para usar o programa, utilize sempre a tecla "TAB" do seu teclado, pois como os programas estão com trava de segurança, devido aos cálculos, esta tecla irá conduzir você somente pelas células que realmente necessitam de manutenção....
A21: Isso facilita você:- quando você estiver na planilha, clique na linha 1 e na célula A e daí em diante só teclar 'TAB"
A22: Dê manutenção nas planilhas seguindo a seqüência da régua....... Ex:- (TABELA) em seguida (CLIENTE).
A23: Para limpar coluna com VALORES ou QUANTIDADES, use sempre a tecla "ZERO" e nunca "BARRA DE ESPAÇO".
A24: Para limpar coluna com NOME ou DATA, use a tecla "BARRA DE ESPAÇO" e nunca a tecla "ZERO";
A25: Dias úteis e dias não úteis:- (MANUTENÇÃO MENSAL) - amarração automática com os cálculos de vale-transportes,salário-família, comissões, horas-extras e descanso semanal remunerado..
A29: Para serviços prestados nas entidades filantrópicas, o desconto do INSS será de 20%, respeitando-se o teto-máximo. Acontecendo isso é só mudar o percentual de 11% para 20% na planilha "TABELA" - célula E15
A31: Fretes
A32: Desconto automático do INSS na planilha RECIBO
A33: valor do serviço prestado (frete) EX:- R$ 2.000,00 X 20% = 400,00 X 11% = 44,00 ( AUTOMÁTICO)
A34: Planilha RECIBO - (manutenção)
A35: (Sest 1,0% + Senat 1,5%) = 2,5% -Ex:-R$ 2.000,00 x 20% -R$ 400,00 x 2,5% =R$ 10,00 (AUTOMÁTICO) - IN-RFB N° 1.080-03/12/2010.
A36: Lance o percentual do ISS na célula Z26, somente para prestador de serviço sem cadastramento Municipal.
A37: lançar as empresas que você já prestou serviço na mesma competência (célula C40 até C54), informe somente o código.
A38: Ex:- Você informará o Código n° 1, automaticamente aparecerá na frente o nome da EMPRESA e CNPJ
A40: Para que o botão funcione, sempre que abrir a planilha, você deve ativar o macro, caso você não ative o macro o botão
A41: fica completamente sem efeito, assim você não passará automaticamente pelas planilhas.
A42: Agora os dependentes são puxados automáticos da planilha autônomo.
A43: Planilha RECIBO - Quando você digitar no demonstrativo o nome da empresa o programa irá comparar
A44: com a empresa atual que você está emitindo o recibo, caso seja a mesma empresa, o programa irá compor a nova
A45: base de cálculo para efeitos de INSS e IRRF -(essa é a grande novidade a partir desta versão)
C47: PROGRAMA COMPOSTO PELAS SEGUINTES PLANILHAS
C48: AJUDA - Aqui você encontra algumas dicas de funcionamento do programa
C49: TABELA - Aqui você atualiza a tabela do Imposto de Renda e também a do INSS. (aqui você só pode usar a tecla TAB do seu teclado).
C51: DADOS DO RECIBO - Aqui você localiza a empresa tomadora do serviço, também localiza o autônomo, o número do recibo a ser emitido, competência do recibo , local de emissão do recibo, data de emissão do recibo e define o tipo de prestador de serviço "autônomo normal - Fretista normal ou transporte de passageiros". (aqui você pode usar as teclas TAB , ENTER e as SETAS do seu teclado)
C56: EMPRESA - Nesta planilha você efetiva o cadastramento da empresa ou das empresas. (aqui você pode usar as teclas TAB , ENTER e as SETAS do seu teclado)
C58: AUTÔNOMO - Nesta planilha você efetiva o cadastramento do autônomo ou dos autônomos.(aqui você pode usar as teclas TAB , ENTER e as SETAS do seu teclado)
C60: RECIBO - Quando você preenche todos os campos da planilha dados do recibo o programa fará automaticamente o cálculo do RPA, na parte de baixo tem um demonstrativo (contribuições nas empresas anteriores no respectivo mês) - aqui você deverá preencher se o autônomo que você está usando já fez outro serviço dentro deste mês a em outra empresa dentro do próprio mês. (Para preencher você pode usar as teclas TAB , ENTER e as SETAS do seu teclado, ele lhe levará somente nos campos que necessitam de atualização).
A65: 20/08/2008 (atualização | C65: Sr. Elio Guedes da Silva - pediu pra mudar a palavra RESPECTIVA p/ RESPECTIVO - e acertar também o campo da Carteira de Identidade que não estava saindo no campo. Aproveitei para implementar do icone dados recibo nos macros
A66: 02/11/2008 (ATUALIZAÇÃO) - RPA V01.E03.T00 | C66: Implantado HIPERLINKS para facilidade no preenchimento das planilhas. Regularizado erro no custo do INSS quanto o prestador de serviço é fretista. Criado opção para o custo com o autônomo ser apresentadado ou não no demonstrativo do recibo, de acordo com opção da empresa.Foi eliminado todos os icones de macros do programas, pois alguns usuários não estavam usado ativar macros.
A67: 25/11/2008 (ATUALIZAÇÃO) - RPA V01.E04.T00 | C67: A versão anterior não estava recalculando imposto de renda dos dados informados no demonostrativo de cálculo. (agora está regularizada). A pedido dos usuários foi retornado os guias das planilhas na régua, portanto os usuários ficam com duas opções, tanto podem usar os links para ir paga as planilhas ou simplesmente usar as planilhas da régua. Foi criado dentro da planilha AUTONOMO - descrição do serviço prestado, portando se o mesmo presta sempre serviços de encanador, deverá descreve prestado de serviço de encanador . e lá na Planilha recibo abaixo desta descrição o usuários poderá colocar o complemento da prestação do serviço.
A68: RPA V01.E05.T00 - ATUAL.02/01/2009 | C68: NOVA TABELA DO IMPOSTO DE RENDA - foi necessário mudar a estrutura do programa, pois houve alteração de faixa do imposto de renda.
C69: Agora o programa permite selecionar todos os autonomos da planilha AUTÔNOMO e depois colocar os mesmos na classificação crescente ou decrescente de acordo com a necessidade do usuário do programa. Assim também foi feito com a planilha EMPRESA.
A70: RPA V01.E06.T00 - ATUAL.28/01/2009 | C70: Na Planilha RECIBO, foi liberado os campos de 2 a 7 do Demonstrativo do Serviço Prestado - este campo era bloqueado na estrutura anterior, mas de acordo com pedidos de usuários que usam as campos e também do Sr. Klemerson do Escritório Universo de Contabilidade. Obrigado pela sugestão.
A71: RPA V01.E06.T01 - ATUAL.08/02/2009 | C71: Mudanças efetuadas nesta versão. Diferença em todas as parcelas a deduzir do imposto de renda ,Muito obrigado ao usuários Leonardo Francis, da cidade de Londrina/PR, que comunicou a irregularidade nas faixas do IRRF.
A72: RPA V01.E06.T02 - ATUAL.13/02/2009 | C72: Atualização da tabela do imposto de renta
A73: RPA V01.E07.T00 - ATUAL. 03/05/2009 | C73: Demonstrativo (contribuições nas empresas anteriores no respectivo mês) - criei uma regra para não utrapassar o teto máximo
A74: RPA V01.E07.T01 - ATUAL. 01/01/2010 | C74: Atualização das tabelas do desconto do INSS e do desconto do Imposto de Renda Retido na Fonte.
A75: RPA V01.E07.T02 - ATUAL. 16/07/2010 | C75: Atualização da tabela do desconto do INSS. Colocação de um demonstrativo na Planilha DADOS1 ou seja uma prévia de como ficará a emissão final do recibo. Foi também implementado no recibo um icone para limpar informações de recibos anteriores
A76: RPA V01.E08.T02 - ATUAL. 24/09/2010 | C76: Atualização do desconto do (SEST/SENAT) IN-RFB n° 1.071 de 15/09/10 - Art 65 - & 5 - conforme disposto no Art 111 - I - Agradecimento ao Sr. Luciano Jr. Custódio Maciel - Fone: (47) 3562-0211- Coord. Depto Pessoal - Taio/SC - Brasil. Que nos forneceu informações via e-mail.
A77: RPA V01.E09.T02 - ATUAL. 28/12/2010 | C77: Atualização do desconto do (SEST/SENAT) IN-RFB n° 1.080 de 03/11/2010 - Art 111 - I - Agradecimento ao Srtª Lilian Moreira (Iguaçu/Ipatinga-MG) - Fone: (31) 3829-6349 - Analista Contábil. Art. 111-I.a base de cálculo da contribuição corresponde a 20% (vinte por cento) do valor bruto do frete, carreto ou transporte, vedada qualquer dedução, ainda que figure discriminadamente na nota fiscal, fatura ou recibo (art. 55, § 2º);
A78: RPA V01.E09.T03 - ATUAL. 01/01/2011 | C78: Atualização das tabelas do desconto do INSS.
A79: RPA V01.E10.T00 - ATUAL. 01/01/2012 | C79: Atualização das tabelas do desconto do IRRF 2012 com regularização da diferença apresentada na faixa nº dois da nova tabela.
A80: RPA V01.E10.T01 - ATUAL. 06/01/2012 | C80: Atualização das tabelas do desconto do INSS
A81: RPA V02.E00.T00 - ATUAL. 17/01/2013 | C81: Atualização da tabela do desconto do INSS / IRRF - MP 582/2012 alterou o percentual sobre o rendimento bruto para transportes de cargas para 10% - (anterior era de 40%)
A82: RPA V03 - ATUAL. 01/2014 | C82: Atualização da tabela do desconto do INSS / IRRF
A83: RPA V04 - ATUAL. 03/2014 (1) | C83: Atualização:- a partir desta versão, você não precisa mais digitar o valor por extenso na planilha RECIBO, passou a ser automático.
A84: RPA V05 - ATUAL. 03/2014 (2) | C84: 2ª Atualização no mês de Março/2014 - Agradeço ao Sr Luciano JR. C. Maciel - Contabilidade Mainhardt Ltda de Taió = SC - detectou erro nas linhas v55 a v57, desconto de inss feito em empresa anteriores na Planilha RECIBO. Agradeço imensamente sua ajuda. Obrigado.
A85: RPA V06 - ATUAL. 06/2014 (1) | C85: Agradeço o Sr. Rogério Aparecido de Miguel, que detectou um erro na informação da inscrição do INSS, na planilha RECIBO.
A86: RPA V07 - ATUAL. 01/2015 (1) | C86: atualização ta tabela do INSS a partir de janeiro de 2015 - ainda não saiu a nova tabela do imposto de renda
A87: AGRADECIMENTOS
A88: Colaboradores: Adão(São Paulo - Capital), Rodrigo(Pres.Prudente), Sérgio(Rancharia) e também ao Sr. João Leite, que
A89: disponibilizou este programa em seu Site http://www.contabilizando.com
A91: ANGELO ADALBERTO TONON
A92: PEDAGOGO - TÉCNICO EM CONTABILIDADE - TÉCNICO EM SEG. NO TRABALHO
A93: PRES.PRUDENTE/SP
A94: e-mail angelo.tonon@ig.com.br

Sheet TAB
C1: AJUDA | E1: EMPRESA | F1: RECIBO
C2: AUTÔNOMO | E2: DADOS DO RECIBO
B3: MÊS DE COMPETÊNCIA
B6: TABELA PARA DESCONTO IMPOSTO RENDA
B7: ATÉ | F7: 1787.77 | I7: 0 | J7: ISENTO
B8: DE | C8: =F7+0.01 -> 1787.78 | E8: ATÉ | F8: 2679.29 | I8: 0.075 | J8: 134.08
B9: DE | C9: =F8+0.01 -> 2679.3 | E9: ATÉ | F9: 3572.43 | I9: 0.15 | J9: =F8*(I9-I8)+J8+0 -> 335.03
B10: DE | C10: =F9+0.01 -> 3572.44 | E10: ATÉ | F10: 4463.81 | I10: 0.225 | J10: =F9*(I10-I9)+J9 -> 602.96
B11: ACIMA DE | F11: =F10 -> 4463.81 | I11: 0.275 | J11: =F10*(I11-I10)+J10 -> 826.15
B12: VALOR DE CADA DEPENDENTE P/ FINS IRRF | J12: 179.71
B13: DEDUÇÃO NA BASE DE CÁLCULO DO IRRF (usar só em casos especiais) | J13: 0
B14: NÃO DESCONTAR IMPOSTO DE RENDA VALOR INFERIOR A | J14: 10
B15: TABELA PARA DESCONTO DA PREVIDÊNCIA SOCIAL
B16: TETO MÁXIMO | D16: =B17*D17 -> 482.93 | E16: PERCENTUAL | G16: LIMITE MÁXIMO DE DESCONTO | L16: 0.11 | M16: 0.2
B17: 4390.24 | D17: 0.11 | E17: 0.11 | H17: =B17*D17 -> 482.93 | I17: =IF(B17*D17>D16,D16,IF(B17*E17<=D16,B17*E17)) -> 482.93 | L17: 0.11 | M17: 0.225
B20: MANUTENÇÃO PARA QUALQUER TIPO DE PRESTAÇÃO DE SERVIÇO
B21: =VLOOKUP(DADOS!$A$3,AUTÔNOMO!A4:AS33,3) -> 0 | C21: NÚMERO DE DEPENDENTES PARA DESCONTO NA BASE DE CÁLCULO DO IMPOSTO DE RENDA
B22: R$ | C22: =IF(F29="3",0,IF(B29="2",0,IF(B29="0",SUM(IF(RECIBO!B43:B57=DADOS!A2,RECIBO!T43:U57))))) -> 0 | E22: VALOR BRUTO DO SERVIÇO PAGO NO MÊS (POR ESTA EMPRESA)
B23: R$ | C23: =IF(F29="3",0,IF(B29="2",0,IF(B29="0",SUM(IF(RECIBO!B43:B57=DADOS!A2,RECIBO!Z43:AA57))))) -> 0 | E23: VALOR DO IRRF, DESCONTADO NO MÊS (POR ESTA EMPRESA)
B24: R$ | C24: =SUM(IF(RECIBO!B43:B57=DADOS!A2,RECIBO!V43:W57)) -> 0 | E24: VALOR DO INSS, DESCONTADO NO MÊS (POR ESTA EMPRESA)
B25: R$ | C25: =D25 -> 0 | D25: =IF(RECIBO!V58>TAB!H17,H17,IF(RECIBO!V58<=TAB!H17,RECIBO!V58)) -> 0 | E25: VALOR DO INSS DESCONTADO NO MÊS (POR TODAS AS EMPRESA)
B27: AUTÔNOMO (FRETE) | F27: AUTÔNOMO (FRETE) | J27: FRETISTAS TEM REGRAS DIFERENTE PARA DESCONTOS DE INSS E TAMBÉM PARA O DESCONTO DE IMPOSTO DE RENDA
B28: (TODOS OS TIPOS DE TRANSPORTES (EXCETO PASSAGEIROS) | F28: (SOMENTE TRANSPORTE DE PASSAGEIROS)
B29: =IF(DADOS1!$W$6=1,"0",IF(DADOS1!$W$6=2,"2",IF(DADOS1!$W$6=3,"0"))) -> 2 | C29: 0.1 | E29: (BASE IRRF) | F29: =IF(DADOS1!$W$6=1,"0",IF(DADOS1!$W$6=3,"3",IF(DADOS1!$W$6=2,"0"))) -> 0 | G29: 0.6 | I29: (BASE IRRF)
C30: R$ | D30: =E30*C29 -> 0 | E30: =IF(B29="0",0,IF(B29="2",SUM(IF(RECIBO!$B$43:'RECIBO'!B57=DADOS!$A$2,RECIBO!$T$43:$T$57)))) -> 0 | G30: R$ | H30: =I30*G29 -> 0 | I30: =IF(F29="0",0,IF(F29="3",SUM(IF(RECIBO!$B$43:B57=DADOS!$A$2,RECIBO!$T$43:$T$57)))) -> 0 | L30: =RECIBO!X26 -> 1000
C31: R$ | E31: =IF(B29="0",0,IF(B29="2",SUM(IF(RECIBO!$B$43:B57=DADOS!$A$2,RECIBO!$Z$43:$Z$57)))) -> 0 | G31: R$ | I31: =IF(F29="0",0,IF(F29="3",SUM(IF(RECIBO!$B$43:'RECIBO'!B57=DADOS!$A$2,RECIBO!$Z$43:$Z$57)))) -> 0 | L31: =RECIBO!Y26 -> 0,00
B32: 0.2 | C32: ( INSS - CUSTO DA EMPRESA) | F32: R$ | G32: =IF(L32>0,L32*TAB!B32,IF(L32=0,M32*B32)) -> 200 | L32: =SUM(L30:L31) -> 1000 | M32: =RECIBO!M33 -> 5000
B33: RPA.V07 -atualizado 01/2014 (1) - angelo.tonon@ig.com.br | L33: TRUE
B34: ESTES LANÇAMENTOS, REGULARIZAM VALORES NO RECIBO | I34: AVISO IMPORTANTE
B35: DESCONTO INSS | G35: 0 | I35: Se você lançar qualquer valor nas células ao lado estes valores serão atualizados automaticamente no recibo
B36: DESCONTO IRRF | G36: 0
B37: DESCONTO IRRF 10% OU 60 % | G37: 0
B38: DESCONTO ISS | G38: 0
B39: DESCONTO SEST/SENAT | G39: 0

Sheet AUTÔNOMO
B1: 2 | C1: 3 | D1: 4 | E1: 5 | F1: 6 | G1: 7 | H1: 8 | I1: 9 | J1: 10 | K1: 11 | L1: 12 | M1: 13 | N1: 14 | O1: 15 | P1: 17 | Q1: 16 | R1: 18 | S1: 19 | T1: 20 | U1: 21 | V1: 22 | W1: 23 | X1: 24 | Y1: 25 | Z1: 26 | AB1: 27 | AC1: 28 | AD1: 29 | AE1: 30 | AF1: 31 | AG1: 32 | AH1: 33 | AI1: 34 | AJ1: 35 | AK1: 36 | AL1: 37 | AM1: 38 | AN1: 39 | AO1: 40 | AP1: 41 | AQ1: 42 | AR1: 43 | AS1: 44
B2: AJUDA | C2: DADOS DO RECIBO | E2: RECIBO
B3: TABELA | C3: EMPRESA
B4: NOME AUTÔNOMO | C4: IRRF | D4: CPF | E4: RG(IDENTIDADE) | F4: ORGÃO EMISSOR | G4: UF | H4: INSCRIÇÃO INSS | I4: PIS | J4: INSC.MUNICIPAL | K4: RUA(AVENIDA) | L4: N° | M4: COMPLEMENTO | N4: BAIRRO | O4: CIDADE | P4: UF | Q4: ESTADO | R4: CEP | S4: PAÍS | T4: FONE | U4: FAX | V4: CELULAR | W4: NOME DO BANCO | X4: N° BANCO | Y4: N° DA AGÊNCIA | Z4: C/ CORRENTE | AA4: DESCRIÇÃO DO SERVIÇO | AB4: NOME DEPENDENTE | AC4: PARENTESCO | AD4: DATA NASCIMENTO | AE4: NOME DEPENDENTE | AF4: PARENTESCO | AG4: DATA NASCIMENTO | AH4: NOME DEPENDENTE | AI4: PARENTESCO | AJ4: DATA NASCIMENTO | AK4: NOME DEPENDENTE | AL4: PARENTESCO | AM4: DATA NASCIMENTO | AN4: NOME DEPENDENTE | AO4: PARENTESCO | AP4: DATA NASCIMENTO | AQ4: NOME DEPENDENTE | AR4: PARENTESCO | AS4: DATA NASCIMENTO
A5: 1
A6: 2 | B6: angelo | C6: 0 | D6: 463.878.979-04 | E6: 11512484-X | F6: SSP | G6: SP | H6: 50.003.11996.07 | I6: 10837449070 | J6: 45456 | K6: AVENIDA INDIANÁPOLIS | L6: 174 | M6: SALA 103 | N6: CENTRO | O6: LONDRINA | P6: SP | Q6: =VLOOKUP(P6,$AV$6:$AW$33,2) -> SÃO PAULO | R6: 86.020-908 | S6: BRASIL | T6: 043 3026-3185 | U6: 043 3026-3186 | V6: 018 9881-4755 | W6: ABN AMRO REAL | X6: 356 | Y6: 1537 | Z6: 0196710 | AA6: Honorários contábeis
A7: 3 | P7: AC | Q7: =VLOOKUP(P7,$AV$6:$AW$33,2) -> ACRE | AV7: AC | AW7: ACRE
A8: 4 | Q8: =VLOOKUP(P8,$AV$6:$AW$33,2) ->  | AV8: AL | AW8: ALAGOAS
A9: 5 | AV9: AM | AW9: AMAZOMAS
A10: 6 | AV10: AP | AW10: AMAPÁ
A11: 7 | AV11: BA | AW11: BAHIA
A12: 8 | AV12: CE | AW12: CEARÁ
A13: 9 | AV13: DF | AW13: DISTRITO FEDERAL
A14: 10 | AV14: ES | AW14: ESPÍRITO SANTO
A15: 11 | AV15: GO | AW15: GOIÂNIA
A16: 12 | AV16: MA | AW16: MARANHÃO
A17: 13 | AV17: MG | AW17: MINAS GERAIS
A18: 14 | AV18: MT | AW18: MATO GROSSO
A19: 15 | AV19: MS | AW19: MATO GROSSO DO SUL
A20: 16 | AV20: PA | AW20: PARÁ
A21: 17 | AV21: PB | AW21: PARAÍBA
A22: 18 | AV22: PE | AW22: PERNAMBUCO
A23: 19 | AV23: PI | AW23: PIAUÍ
A24: 20 | AV24: PR | AW24: PARANÁ
A25: 21 | AV25: RJ | AW25: RIO DE JANEIRO
A26: 22 | AV26: RN | AW26: RIO GRANDE DO NORTE
A27: 23 | AV27: RO | AW27: RONDÔNIA
A28: 24 | AV28: RR | AW28: RORAIMA
A29: 25 | AV29: RS | AW29: RIO GRANDE DO SUL
A30: 26 | AV30: SC | AW30: SANTA CATARINA
A31: 27 | AV31: SE | AW31: SERGIPE
A32: 28 | AV32: SP | AW32: SÃO PAULO
A33: 29 | AV33: TO | AW33: TOCANTINS
A34: 30
A35: 31
A36: 32
A37: 33
A38: 34
A39: 35
A40: 36
A41: 37
A42: 38
A43: 39
A44: 40
A45: 41
A46: 42
A47: 43
A48: 44
A49: 45
A50: 46
A51: 47
A52: 48
A53: 49
A54: 50
A55: 51
A56: 52
A57: 53
A58: 54
A59: 55
A60: 56
A61: 57
A62: 58
A63: 59
A64: 60
A65: 61
A66: 62
A67: 63
A68: 64
A69: 65
A70: 66
A71: 67 | Q71: =VLOOKUP(P71,$AV$6:$AW$33,2) -> 
A72: 68
A73: 69
A74: 70
A75: 71
A76: 72
A77: 73
A78: 74
A79: 75
A80: 76
A81: 77
A82: 78
A83: 79
A84: 80
A85: 81
A86: 82
A87: 83
A88: 84
A89: 85
A90: 86
A91: 87
A92: 88
A93: 89
A94: 90
A95: 91
A96: 92
A97: 93
A98: 94
A99: 95
A100: 96
A101: 97
A102: 98
A103: 99
A104: 100
A105: 101
A106: 102
A107: 103
A108: 104
A109: 105
A110: 106
A111: 107
A112: 108
A113: 109
A114: 110
A115: 111
A116: 112
A117: 113
A118: 114
A119: 115
A120: 116
A121: 117
A122: 118
A123: 119
A124: 120
A125: 121
A126: 122
A127: 123
A128: 124
A129: 125
A130: 126
A131: 127
A132: 128
A133: 129
A134: 130
A135: 131 | Q135: =VLOOKUP(P135,$AV$6:$AW$33,2) -> 
A136: 132
A137: 133
A138: 134
A139: 135
A140: 136
A141: 137
A142: 138
A143: 139
A144: 140
A145: 141
A146: 142
A147: 143
A148: 144
A149: 145
A150: 146
A151: 147
A152: 148
A153: 149
A154: 150
A155: 151
A156: 152
A157: 153
A158: 154
A159: 155
A160: 156
A161: 157
A162: 158
A163: 159
A164: 160
A165: 161
A166: 162
A167: 163
A168: 164
A169: 165
A170: 166
A171: 167
A172: 168
A173: 169
A174: 170
A175: 171
A176: 172
A177: 173
A178: 174
A179: 175
A180: 176
A181: 177
A182: 178
A183: 179
A184: 180
A185: 181
A186: 182
A187: 183
A188: 184
A189: 185
A190: 186
A191: 187
A192: 188
A193: 189
A194: 190
A195: 191
A196: 192
A197: 193
A198: 194
A199: 195 | Q199: =VLOOKUP(P199,$AV$6:$AW$33,2) -> 
A200: 196
... 925 more rows

Sheet EMPRESA
B1: AJUDA | C1: DADOS DO RECIBO
B2: TABELA | C2: RECIBO
B3: AUTÔNOMO
B4: CADASTRO DO CLIENTE | C4: CADASTRO DO CLIENTE | D4: CADASTRO DO CLIENTE | E4: CADASTRO DO CLIENTE | F4: CADASTRO DO CLIENTE | G4: CADASTRO DO CLIENTE | H4: CADASTRO DO CLIENTE | J4: CADASTRO DO CLIENTE | K4: CADASTRO DO CLIENTE | L4: CADASTRO DO CLIENTE | M4: CADASTRO DO CLIENTE | N4: CADASTRO DO CLIENTE | O4: CADASTRO DO CLIENTE | P4: CADASTRO DO CLIENTE | Q4: CADASTRO DO CLIENTE | R4: CADASTRO DO CLIENTE | S4: CADASTRO DO CLIENTE | T4: CADASTRO DO CLIENTE | U4: CADASTRO DO CLIENTE | V4: CADASTRO DO CLIENTE | W4: CADASTRO DO CLIENTE | X4: CADASTRO DO CLIENTE | Y4: CADASTRO DO CLIENTE | Z4: CADASTRO DO CLIENTE | AA4: CADASTRO DO CLIENTE | AB4: CADASTRO DO CLIENTE | AC4: CADASTRO DO CLIENTE | AD4: CADASTRO DO CLIENTE | AE4: CADASTRO DO CLIENTE | AF4: CADASTRO DO CLIENTE | AG4: CADASTRO DO CLIENTE | AH4: CADASTRO DO CLIENTE | AI4: CADASTRO DO CLIENTE | AJ4: CADASTRO DO CLIENTE | AK4: CADASTRO DO CLIENTE | AL4: CADASTRO DO CLIENTE | AM4: CADASTRO DO CLIENTE | AN4: CADASTRO DO CLIENTE | AO4: CADASTRO DO CLIENTE | AP4: CADASTRO DO CLIENTE | AQ4: CADASTRO DO CLIENTE | AR4: CADASTRO DO CLIENTE | AS4: CADASTRO DO CLIENTE | AT4: CADASTRO DO CLIENTE | AU4: CADASTRO DO CLIENTE | AV4: CADASTRO DO CLIENTE | AW4: CADASTRO DO CLIENTE | AX4: CADASTRO DO CLIENTE | AY4: CADASTRO DO CLIENTE
B5: NOME | C5: ENDEREÇO | D5: Nº | E5: COMPLEMENTO | F5: BAIRRRO | G5: CIDADE | H5: UF | I5: ESTADO | J5: CEP | K5: PAÍS | L5: FONE | M5: FAX | N5: E-MAIL | O5: CNPJ | P5: INSCRIÇÃO ESTADUAL | Q5: INSCRIÇÃO MUNICIPAL | R5: PESSOAL DE CONTATO | S5: ENTIDADE FILANTROPIA
A6: 1
A7: 2 | B7: TAL TRANSPORTE LTDA | C7: RUA VITÓRIO | D7: 1500 | E7: BLOCO 3 | F7: JARDIM EUROPA | G7: PRESIDENTE PRUDENTE | H7: SP | I7: =VLOOKUP(H7,$U$7:$V$34,2) -> SÃO PAULO | J7: 19.013-221 | K7: BRASIL | O7: 55683486000100 | P7: 562.005.580-113 | Q7: 456 | R7: ANGELO TONON
A8: 3 | B8: DISK AUTOMÓVEIS LTDA | C8: RUA ESMERALDA | D8: 500 | E8: BLO Q | F8: JARDIM AMÉRICA | G8: PRESIDENTE PRUDENTE | H8: SP | I8: =VLOOKUP(H8,$U$7:$V$34,2) -> SÃO PAULO | J8: 19.012-220 | K8: BRASIL | O8: 02.044.526/0001-07 | U8: AC | V8: ACRE
A9: 4 | I9: =VLOOKUP(H9,$U$7:$V$34,2) ->  | U9: AL | V9: ALAGOAS
A10: 5 | U10: AM | V10: AMAZOMAS
A11: 6 | U11: AP | V11: AMAPÁ
A12: 7 | U12: BA | V12: BAHIA
A13: 8 | U13: CE | V13: CEARÁ
A14: 9 | U14: DF | V14: DISTRITO FEDERAL
A15: 10 | U15: ES | V15: ESPÍRITO SANTO
A16: 11 | U16: GO | V16: GOIÂNIA
A17: 12 | U17: MA | V17: MARANHÃO
A18: 13 | U18: MG | V18: MINAS GERAIS
A19: 14 | U19: MT | V19: MATO GROSSO
A20: 15 | U20: MS | V20: MATO GROSSO DO SUL
A21: 16 | U21: PA | V21: PARÁ
A22: 17 | U22: PB | V22: PARAÍBA
A23: 18 | U23: PE | V23: PERNAMBUCO
A24: 19 | U24: PI | V24: PIAUÍ
A25: 20 | U25: PR | V25: PARANÁ
A26: 21 | U26: RJ | V26: RIO DE JANEIRO
A27: 22 | U27: RN | V27: RIO GRANDE DO NORTE
A28: 23 | U28: RO | V28: RONDÔNIA
A29: 24 | U29: RR | V29: RORAIMA
A30: 25 | U30: RS | V30: RIO GRANDE DO SUL
A31: 26 | U31: SC | V31: SANTA CATARINA
A32: 27 | U32: SE | V32: SERGIPE
A33: 28 | U33: SP | V33: SÃO PAULO
A34: 29 | U34: TO | V34: TOCANTINS
A35: 30
A36: 31
A37: 32
A38: 33
A39: 34
A40: 35
A41: 36
A42: 37
A43: 38
A44: 39
A45: 40
A46: 41
A47: 42
A48: 43
A49: 44
A50: 45
A51: 46
A52: 47
A53: 48
A54: 49
A55: 50
A56: 51
A57: 52
A58: 53
A59: 54
A60: 55
A61: 56
A62: 57
A63: 58
A64: 59
A65: 60
A66: 61
A67: 62
A68: 63
A69: 64
A70: 65
A71: 66
A72: 67 | I72: =VLOOKUP(H72,$U$7:$V$34,2) -> 
A73: 68
A74: 69
A75: 70
A76: 71
A77: 72
A78: 73
A79: 74
A80: 75
A81: 76
A82: 77
A83: 78
A84: 79
A85: 80
A86: 81
A87: 82
A88: 83
A89: 84
A90: 85
A91: 86
A92: 87
A93: 88
A94: 89
A95: 90
A96: 91
A97: 92
A98: 93
A99: 94
A100: 95
A101: 96
A102: 97
A103: 98
A104: 99
A105: 100
A106: 101
A107: 102
A108: 103
A109: 104
A110: 105
A111: 106
A112: 107
A113: 108
A114: 109
A115: 110
A116: 111
A117: 112
A118: 113
A119: 114
A120: 115
A121: 116
A122: 117
A123: 118
A124: 119
A125: 120
A126: 121
A127: 122
A128: 123
A129: 124
A130: 125
A131: 126
A132: 127
A133: 128
A134: 129
A135: 130
A136: 131 | I136: =VLOOKUP(H136,$U$7:$V$34,2) -> 
A137: 132
A138: 133
A139: 134
A140: 135
A141: 136
A142: 137
A143: 138
A144: 139
A145: 140
A146: 141
A147: 142
A148: 143
A149: 144
A150: 145
A151: 146
A152: 147
A153: 148
A154: 149
A155: 150
A156: 151
A157: 152
A158: 153
A159: 154
A160: 155
A161: 156
A162: 157
A163: 158
A164: 159
A165: 160
A166: 161
A167: 162
A168: 163
A169: 164
A170: 165
A171: 166
A172: 167
A173: 168
A174: 169
A175: 170
A176: 171
A177: 172
A178: 173
A179: 174
A180: 175
A181: 176
A182: 177
A183: 178
A184: 179
A185: 180
A186: 181
A187: 182
A188: 183
A189: 184
A190: 185
A191: 186
A192: 187
A193: 188
A194: 189
A195: 190
A196: 191
A197: 192
A198: 193
A199: 194
A200: 195 | I200: =VLOOKUP(H200,$U$7:$V$34,2) -> 
... 1279 more rows

Sheet DADOS1
A2: 2 | D2: Escolha o nome do Tomador de Serviço (EMPRESA) | K2: Escolha o nome do Prestador do Serviço (AUTÔNOMO)
A3: 4
D5: Escolha a Competência do RECIBO | K5: Escolha o número do RECIBO
D6: 2014-06-01 | K6: 1 | W6: 2
D8: DIGITE O VALOR BRUTO DO SERVIÇO PRESTAÇÃO
D9: R$ | F9: 5000
D11: LOCAL DE EMISSÃO DO RECIBO DE RPA (CIDADE)
D14: DATA DE EMISSÃO DO RECIBO DE RPA
D15: 2014-01-01
D16: AJUDA | F16: TABELA | H16: EMPRESA
D17: AUTÔNOMO | F17: RECIBO
D19: OBSERVAÇÃO:- NO QUADRO VERDE VOCÊ DEFINE
D20: QUAL O TIPO DE PRESTADOR DE SERVIÇO......................
D21: Resumo do Recibo | G21: =F9 -> 5000 | H21: Os valores apresentados neste quadro é a simulação para efeitos de emissão do recibo de pagamento do RPCI/RPA
D22: Desconto do INSS | G22: =RECIBO!AD26 -> 110
D23: Desconto do IRRF | G23: =RECIBO!AD27+RECIBO!AD28 -> 0
D24: Sest/Senat | G24: =RECIBO!AD30 -> 25
D25: Descontos Diversos | G25: =RECIBO!AD29+RECIBO!AD31 -> 0
D26: Liquido do Recibo.............. | G26: =RECIBO!AD33 -> 4865

Sheet RECIBO
C2: AJUDA | H2: TABELA | L2: EMPRESA | P2: AUTÔNOMO | U2: DADOS
AD5: =NOW() -> 2015-02-11T01:37:53.350
D6: RPA (RECIBO DE PAGAMENTO A AUTÔNOMO) e RPCI (RECIBO DE PAGAMENTO AO CONTRIBUINTE INDIVIDUAL) | U6: Nº DO RECIBO | AC6: COMPETÊNCIA
U7: =DADOS1!K6 -> 1 | AC7: =DADOS1!D6 -> 2014-06-01
D9: DADOS CADASTRAIS DA CONTRATANTE
D10: NOME DA EMPRESA :- | J10: =VLOOKUP(DADOS1!A2,EMPRESA!A6:CV4501,2) -> TAL TRANSPORTE LTDA
D11: CNPJ Nº:- | F11: =VLOOKUP(DADOS1!$A$2,EMPRESA!$A$6:$AG$4501,15) -> 55683486000100 | K11: ENDEREÇO :- | N11: =VLOOKUP(DADOS1!$A$2,EMPRESA!$A$6:$CV$4501,3) -> RUA VITÓRIO | AE11: N°:- | AF11: =VLOOKUP(DADOS1!$A$2,EMPRESA!$A$6:$AG$4501,4) -> 1500
D12: BAIRRO:- | F12: =VLOOKUP(DADOS1!$A$2,EMPRESA!$A$6:$AG$4501,6) -> JARDIM EUROPA | K12: CEP:- | M12: =VLOOKUP(DADOS1!$A$2,EMPRESA!$A$6:$AG$4501,10) -> 19.013-221 | P12: CIDADE:- | T12: =VLOOKUP(DADOS1!$A$2,EMPRESA!$A$6:$AG$4501,7) -> PRESIDENTE PRUDENTE | U12: =VLOOKUP(DADOS!$A$2,EMPRESA!$B$6:$AG$4022,15) ->  | V12: =VLOOKUP(DADOS!$A$2,EMPRESA!$B$6:$AG$4022,15) ->  | W12: =VLOOKUP(DADOS!$A$2,EMPRESA!$B$6:$AG$4022,15) ->  | X12: =VLOOKUP(DADOS!$A$2,EMPRESA!$B$6:$AG$4022,15) ->  | Y12: =VLOOKUP(DADOS!$A$2,EMPRESA!$B$6:$AG$4022,15) ->  | Z12: =VLOOKUP(DADOS!$A$2,EMPRESA!$B$6:$AG$4022,15) ->  | AA12: =VLOOKUP(DADOS!$A$2,EMPRESA!$B$6:$AG$4022,15) ->  | AB12: =VLOOKUP(DADOS!$A$2,EMPRESA!$B$6:$AG$4022,15) ->  | AC12: =VLOOKUP(DADOS!$A$2,EMPRESA!$B$6:$AG$4022,15) ->  | AD12: =VLOOKUP(DADOS!$A$2,EMPRESA!$B$6:$AG$4022,15) ->  | AE12: UF:- | AF12: =VLOOKUP(DADOS1!$A$2,EMPRESA!$A$6:$AG$4501,8) -> SP | AG12: =VLOOKUP(DADOS!$A$2,EMPRESA!$B$6:$AG$4022,15) -> 
D14: DADOS CADASTRAIS DO PRESTADOR DE SERVIÇO
D15: NOME | H15: =VLOOKUP(DADOS1!A3,AUTÔNOMO!A3:B4501,2) -> 0
D16: ENDEREÇO | H16: =VLOOKUP(DADOS1!$A$3,AUTÔNOMO!A5:AS4501,11) -> 0 | AA16: N° | AB16: =VLOOKUP(DADOS1!A3,AUTÔNOMO!A4:AS4501,12) -> 0
D17: COMPLEMENTO | H17: =VLOOKUP(DADOS1!A3,AUTÔNOMO!A4:AS4501,13) -> 0 | S17: BAIRRO | U17: =VLOOKUP(DADOS1!A3,AUTÔNOMO!A4:AS4501,14) -> 0 | AB17: CEP | AD17: =VLOOKUP(DADOS1!A3,AUTÔNOMO!A4:AS4501,18) -> 0
D18: MUNICÍPIO/UF | H18: =VLOOKUP(DADOS1!$A$3,AUTÔNOMO!$A$4:$AS$4501,15) -> 0 | P18: =VLOOKUP(DADOS1!$A$3,AUTÔNOMO!$A$4:$AS$4501,16) -> 0 | S18: DEPÓSITO BANCO | W18: =VLOOKUP(DADOS1!A3,AUTÔNOMO!A4:AS4501,23) -> 0 | AD18: BCO N° | AF18: =VLOOKUP(DADOS1!A3,AUTÔNOMO!A4:AS4501,24) -> 0
D19: TELEFONE N° | H19: =VLOOKUP(DADOS1!A3,AUTÔNOMO!A4:AS4501,20) -> 0 | L19: FAX N° | N19: =VLOOKUP(DADOS1!A3,AUTÔNOMO!A4:AS4501,21) -> 0 | S19: AG. N° | U19: =VLOOKUP(DADOS1!A3,AUTÔNOMO!A4:AS4501,25) -> 0 | W19: C/C N° | AA19: =VLOOKUP(DADOS1!A3,AUTÔNOMO!A4:AS4501,26) -> 0
D20: CELULAR N° | H20: =VLOOKUP(DADOS1!$A$3,AUTÔNOMO!$A$4:$AS$4501,22) -> 0 | S20: CPF N° | V20: =VLOOKUP(DADOS1!A3,AUTÔNOMO!A4:AS4501,4) -> 0
D21: PIS/PASEP N° | H21: =VLOOKUP(DADOS1!$A$3,AUTÔNOMO!$A$4:$AS$4501,9) -> 0 | S21: RG N° / ÓRGÃO EMISSOR/UF | Z21: =VLOOKUP(DADOS1!A3,AUTÔNOMO!A4:AS4501,5) -> 0 | AD21: =VLOOKUP(DADOS1!$A$3,AUTÔNOMO!$A$4:$AS$4501,6) -> 0 | AF21: =VLOOKUP(DADOS1!$A$3,AUTÔNOMO!$A$4:$AS$4501,7) -> 0
D22: INSC. INSS N° | H22: =VLOOKUP(DADOS1!$A$3,AUTÔNOMO!$A$4:$AS$4501,8) -> 0 | S22: INSC.PREF. MUNICÍPAL N° | AB22: =VLOOKUP(DADOS1!A3,AUTÔNOMO!A4:AS4501,10) -> 0
D24: DEMONSTRATIVO DO SERVIÇO PRESTADO
D25: PARCELAS | S25: DESCONTOS | AI25: =(AI26+AJ26) -> 110
D26: 1 | E26: Valor do Serviço Prestado | L26: R$ | M26: =DADOS1!F9 -> 5000 | S26: 1 | T26: INSS | X26: =IF(TAB!$B$29="2",(M33*TAB!$B$32),IF(TAB!$B$29="0","0,00")) -> 1000 | Y26: =IF(TAB!$F$29="3",(M33*TAB!$B$32),IF(TAB!$F$29="0","0,00")) -> 0,00 | AA26: =TAB!E17 -> 0.11 | AC26: R$ | AD26: =AK26+TAB!G35 -> 110 | AI26: =IF(Y26<="0,00",IF(X26<="0,00",(Y26+X26)*TAB!E17)) -> 110 | AJ26: =IF(Y26="0,00",IF(X26="0,00",M33*TAB!E17)) -> FALSE | AK26: =IF(AI25+TAB!C25>=TAB!I17,TAB!I17-TAB!C25,IF(AI25+TAB!C25<=TAB!I17,AI25)) -> 110
D27: 2 | L27: R$ | S27: 2 | T27: IRRF | AC27: R$ | AD27: =IF(M33<=0,0,IF(M33>0,AM27)) -> 0 | AI27: =IF(AI28="0,00",IF(AI29="0,00",M33)) -> FALSE | AJ27: =IF(AI27+TAB!$C$22-AD26-TAB!J13-TAB!C24-TAB!$B$21*TAB!$J$12<=TAB!$F$7,TAB!$I$7,IF(AI27+TAB!$C$22-AD26-TAB!J13-TAB!C24-TAB!$B$21*TAB!$J$12<TAB!$F$8,(AI27+TAB!$C$22-AD26-TAB!J13-TAB!C24-TAB!$B$21*TAB!$J$12)*(TAB!$I$8)-(TAB!$J$8),IF(AI27+TAB!$C$22-AD26-TAB!J13-TAB!C24-TAB!$B$21*TAB!$J$12<TAB!$F$9,(AI27+TAB!$C$22-AD26-TAB!J13-TAB!C24-TAB!$B$21*TAB!$J$12)*(TAB!$I$9)-(TAB!$J$9),IF(AI27+TAB!$C$22-AD26-TAB!J13-TAB!C24-TAB!$B$21*TAB!$J$12<TAB!$F$10,(AI27+TAB!$C$22-AD26-TAB!J13-TAB!C24-TAB!$B$21*TAB!$J$12)*(TAB!$I$10)-(TAB!$J$10),IF(AI27+TAB!$C$22-AD26-TAB!J13-TAB!C24-TAB!$B$21*TAB!$J$12>TAB!$F$11,(AI27+TAB!$C$22-AD26-TAB!J13-TAB!C24-TAB!$B$21*TAB!$J$12)*(TAB!$I$11)-(TAB!$J$11)))))) -> 0 | AK27: =AJ27-TAB!$C$23 -> 0 | AM27: =IF($AK$27<TAB!$J$14,TAB!$I$7,IF($AK$27>=TAB!$J$14,$AK$27))+TAB!$G$36 -> 0
D28: 3 | L28: R$ | S28: 3 | T28: IRRF (FRETE 10% OU 60%) | AC28: R$ | AD28: =IF(M33<=0,0,IF(M33>0,AM28)) -> 0 | AI28: =IF(TAB!$B$29="2",(M33*TAB!$C$29),IF(TAB!$B$29="0","0,00")) -> 500 | AJ28: =IF(AI28+TAB!$D$30-AD26-TAB!J13-TAB!C24-TAB!$B$21*TAB!$J$12<=TAB!$F$7,TAB!$I$7,IF(AI28+TAB!$D$30-AD26-TAB!J13-TAB!C24-TAB!$B$21*TAB!$J$12<TAB!$F$8,(AI28+TAB!$D$30-AD26-TAB!J13-TAB!C24-TAB!$B$21*TAB!$J$12)*(TAB!$I$8)-(TAB!$J$8),IF(AI28+TAB!$D$30-AD26-TAB!J13-TAB!C24-TAB!$B$21*TAB!$J$12<TAB!$F$9,(AI28+TAB!$D$30-AD26-TAB!J13-TAB!C24-TAB!$B$21*TAB!$J$12)*(TAB!$I$9)-(TAB!$J$9),IF(AI28+TAB!$D$30-AD26-TAB!J13-TAB!C24-TAB!$B$21*TAB!$J$12<TAB!$F$10,(AI28+TAB!$D$30-AD26-TAB!J13-TAB!C24-TAB!$B$21*TAB!$J$12)*(TAB!$I$10)-(TAB!$J$10),IF(M33+TAB!$D$30-AD26-TAB!J13-TAB!C24-TAB!$B$21*TAB!$J$12>TAB!$F$11,(AI28+TAB!$D$30-AD26-TAB!J13-TAB!C24-TAB!$B$21*TAB!$J$12)*(TAB!$I$11)-(TAB!$J$11)))))) -> 0 | AK28: =AJ28-TAB!$E$31 -> 0 | AL28: =IF(AK28<10,TAB!$I$7,IF(AK28>=10,AK28)) -> 0 | AM28: =$AL$28+$AL$29+TAB!$G$37 -> 0
D29: 4 | L29: R$ | S29: 4 | T29: IMPOSTO MUNICIPAL "ISS" | AB29: % | AC29: R$ | AD29: =IF(M33<=0,0,IF(M33>0,AM29)) -> 0 | AI29: =IF(TAB!$F$29="3",($M$33*TAB!$G$29),IF(TAB!$F$29="0","0,00")) -> 0,00 | AJ29: =IF(AI29+TAB!$H$30-TAB!C24-AD26-TAB!J13-TAB!$B$21*TAB!$J$12<=TAB!$F$7,TAB!$I$7,IF(AI29+TAB!$H$30-TAB!C24-AD26-TAB!J13-TAB!$B$21*TAB!$J$12<TAB!$F$8,(AI29+TAB!$H$30-TAB!C24-AD26-TAB!J13-TAB!$B$21*TAB!$J$12)*(TAB!$I$8)-(TAB!$J$8),IF(AI29+TAB!$H$30-TAB!C24-AD26-TAB!J13-TAB!$B$21*TAB!$J$12<TAB!$F$9,(AI29+TAB!$H$30-TAB!C24-AD26-TAB!J13-TAB!$B$21*TAB!$J$12)*(TAB!$I$9)-(TAB!$J$9),IF(AI29+TAB!$H$30-TAB!C24-AD26-TAB!J13-TAB!$B$21*TAB!$J$12<TAB!$F$10,(AI29+TAB!$H$30-TAB!C24-AD26-TAB!J13-TAB!$B$21*TAB!$J$12)*(TAB!$I$10)-(TAB!$J$10),IF(M33+TAB!$H$30-TAB!C24-AD26-TAB!J13-TAB!$B$21*TAB!$J$12>TAB!$F$11,(AI29+TAB!$H$30-TAB!C24-AD26-TAB!J13-TAB!$B$21*TAB!$J$12)*(TAB!$I$11)-(TAB!$J$11)))))) -> 0 | AK29: =AJ29-TAB!$I$31 -> 0 | AL29: =IF(AK29<10,TAB!$I$7,IF(AK29>=10,AK29)) -> 0 | AM29: =$M$33*$AA$29%+TAB!$G$38 -> 0
D30: 5 | L30: R$ | S30: 5 | T30: SEST/SENAT | X30: =IF(TAB!$B$29="2",(M33*TAB!B32),IF(TAB!$B$29="0","0,00")) -> 1000 | Y30: =IF(TAB!$F$29="3",(M33*TAB!B32),IF(TAB!$F$29="0","0,00")) -> 0,00 | AA30: 2.5 | AB30: % | AC30: R$ | AD30: =IF(M33<=0,0,IF(M33>0,AM30)) -> 25 | AM30: =($X$30+$Y$30)*$AA$30%+TAB!$G$39 -> 25
D31: 6 | L31: R$ | S31: 6 | AC31: R$
D32: 7 | L32: R$ | T32: TOTAL | AC32: R$ | AD32: =SUM(AD26:AG31) -> 135
E33: TOTAL | L33: R$ | M33: =SUM(M26:Q32) -> 5000 | T33: LIQUIDO A RECEBER | AC33: R$ | AD33: =M33-AD32 -> 4865
D35: Recebi da empresa acima identificada, a importância líquida de | Z35: R$ | AA35: =AD33 -> 4865
D36: ( | E36: =fextenso(AA35,1/3,"real","Reais") -> quatro mil oitocentos e sessenta e cinco reais | AG36: )
D37: pela prestação de serviços de | K37: =VLOOKUP(DADOS1!$A$3,AUTÔNOMO!$A$4:$AS$4501,27) -> 0 | L37: =VLOOKUP(DADOS1!$A$3,AUTÔNOMO!$A$4:$AS$4501,9) -> 0 | M37: =VLOOKUP(DADOS1!$A$3,AUTÔNOMO!$A$4:$AS$4501,9) -> 0 | N37: =VLOOKUP(DADOS1!$A$3,AUTÔNOMO!$A$4:$AS$4501,9) -> 0 | O37: =VLOOKUP(DADOS1!$A$3,AUTÔNOMO!$A$4:$AS$4501,9) -> 0 | P37: =VLOOKUP(DADOS1!$A$3,AUTÔNOMO!$A$4:$AS$4501,9) -> 0 | Q37: =VLOOKUP(DADOS1!$A$3,AUTÔNOMO!$A$4:$AS$4501,9) -> 0 | R37: =VLOOKUP(DADOS1!$A$3,AUTÔNOMO!$A$4:$AS$4501,9) -> 0 | S37: =VLOOKUP(DADOS1!$A$3,AUTÔNOMO!$A$4:$AS$4501,9) -> 0 | T37: =VLOOKUP(DADOS1!$A$3,AUTÔNOMO!$A$4:$AS$4501,9) -> 0 | U37: =VLOOKUP(DADOS1!$A$3,AUTÔNOMO!$A$4:$AS$4501,9) -> 0 | V37: =VLOOKUP(DADOS1!$A$3,AUTÔNOMO!$A$4:$AS$4501,9) -> 0 | W37: =VLOOKUP(DADOS1!$A$3,AUTÔNOMO!$A$4:$AS$4501,9) -> 0 | X37: =VLOOKUP(DADOS1!$A$3,AUTÔNOMO!$A$4:$AS$4501,9) -> 0 | Y37: =VLOOKUP(DADOS1!$A$3,AUTÔNOMO!$A$4:$AS$4501,9) -> 0 | Z37: =VLOOKUP(DADOS1!$A$3,AUTÔNOMO!$A$4:$AS$4501,9) -> 0 | AA37: =VLOOKUP(DADOS1!$A$3,AUTÔNOMO!$A$4:$AS$4501,9) -> 0 | AB37: =VLOOKUP(DADOS1!$A$3,AUTÔNOMO!$A$4:$AS$4501,9) -> 0 | AC37: =VLOOKUP(DADOS1!$A$3,AUTÔNOMO!$A$4:$AS$4501,9) -> 0 | AD37: =VLOOKUP(DADOS1!$A$3,AUTÔNOMO!$A$4:$AS$4501,9) -> 0 | AE37: =VLOOKUP(DADOS1!$A$3,AUTÔNOMO!$A$4:$AS$4501,9) -> 0 | AF37: =VLOOKUP(DADOS1!$A$3,AUTÔNOMO!$A$4:$AS$4501,9) -> 0 | AG37: =VLOOKUP(DADOS1!$A$3,AUTÔNOMO!$A$4:$AS$4501,9) -> 0
D38: Complementação dos serviços prestados
D39: conforme demonstrativo do serviço prestado acima:-
D41: DEMONSTRATIVO (CONTRIBUIÇÕES NAS EMPRESAS ANTERIORES NO RESPECTIVO MÊS) | Z41: COMPETÊNCIA:- | AD41: =AC7 -> 2014-06-01
D42: EMPRESA | M42: CNPJ N° | Q42: DATA | T42: VLR.SERVIÇO | V42: INSS | Z42: IRRF | AB42: ISS | AD42: OUTROS | AF42: LIQUIDO
B43: 1 | D43: =VLOOKUP(B43,EMPRESA!$A$5:$CV$4501,2,FALSE) ->  | M43: =VLOOKUP(B43,EMPRESA!$A$6:$AG$4501,15) ->  | AF43: =T43-V43-Z43-AB43-AD43 -> 0 | AJ43: =TAB!I17 -> 482.93
B44: 1 | D44: =VLOOKUP(B44,EMPRESA!$A$5:$CV$4501,2,FALSE) ->  | M44: =VLOOKUP(B44,EMPRESA!$A$6:$AG$4501,15) ->  | AF44: =T44-V44-Z44-AB44-AD44 -> 0
B45: 1 | D45: =VLOOKUP(B45,EMPRESA!$A$5:$CV$4501,2,FALSE) ->  | M45: =VLOOKUP(B45,EMPRESA!$A$6:$AG$4501,15) ->  | AF45: =T45-V45-Z45-AB45-AD45 -> 0
B46: 1 | D46: =VLOOKUP(B46,EMPRESA!$A$5:$CV$4501,2,FALSE) ->  | M46: =VLOOKUP(B46,EMPRESA!$A$6:$AG$4501,15) ->  | AF46: 0
B47: 1 | D47: =VLOOKUP(B47,EMPRESA!$A$5:$CV$4501,2,FALSE) ->  | M47: =VLOOKUP(B47,EMPRESA!$A$6:$AG$4501,15) ->  | AF47: 0
B48: 1 | D48: =VLOOKUP(B48,EMPRESA!$A$5:$CV$4501,2,FALSE) ->  | M48: =VLOOKUP(B48,EMPRESA!$A$6:$AG$4501,15) ->  | AF48: 0
B49: 1 | D49: =VLOOKUP(B49,EMPRESA!$A$5:$CV$4501,2,FALSE) ->  | M49: =VLOOKUP(B49,EMPRESA!$A$6:$AG$4501,15) ->  | AF49: 0
B50: 1 | D50: =VLOOKUP(B50,EMPRESA!$A$5:$CV$4501,2,FALSE) ->  | M50: =VLOOKUP(B50,EMPRESA!$A$6:$AG$4501,15) ->  | AF50: 0
B51: 1 | D51: =VLOOKUP(B51,EMPRESA!$A$5:$CV$4501,2,FALSE) ->  | M51: =VLOOKUP(B51,EMPRESA!$A$6:$AG$4501,15) ->  | AF51: 0
B52: 1 | D52: =VLOOKUP(B52,EMPRESA!$A$5:$CV$4501,2,FALSE) ->  | M52: =VLOOKUP(B52,EMPRESA!$A$6:$AG$4501,15) ->  | AF52: 0
B53: 1 | D53: =VLOOKUP(B53,EMPRESA!$A$5:$CV$4501,2,FALSE) ->  | M53: =VLOOKUP(B53,EMPRESA!$A$6:$AG$4501,15) ->  | AF53: 0
B54: 1 | D54: =VLOOKUP(B54,EMPRESA!$A$5:$CV$4501,2,FALSE) ->  | M54: =VLOOKUP(B54,EMPRESA!$A$6:$AG$4501,15) ->  | AF54: 0
B55: 1 | D55: =VLOOKUP(B55,EMPRESA!$A$5:$CV$4501,2,FALSE) ->  | M55: =VLOOKUP(B55,EMPRESA!$A$6:$AG$4501,15) ->  | AF55: 0
B56: 1 | D56: =VLOOKUP(B56,EMPRESA!$A$5:$CV$4501,2,FALSE) ->  | M56: =VLOOKUP(B56,EMPRESA!$A$6:$AG$4501,15) ->  | AF56: 0
B57: 1 | D57: =VLOOKUP(B57,EMPRESA!$A$5:$CV$4501,2,FALSE) ->  | M57: =VLOOKUP(B57,EMPRESA!$A$6:$AG$4501,15) ->  | AF57: 0
D58: (programa de uso gratuito) TOTAL => | T58: =SUM(T43:U57) -> 0 | V58: =SUM(V43:W57) -> 0 | Z58: =SUM(Z43:AA57) -> 0 | AB58: =SUM(AB43:AC57) -> 0 | AD58: =SUM(AD43:AE57) -> 0 | AF58: =SUM(AF43:AG57) -> 0
D59: (Cálcular desconto do inss sobre o frete, valor do serviço x 20% x 11% ) | T59: CUSTO DA EMPRESA COM INSS SOBRE ESTE RECIBO | AD59: R$ | AE59: =IF(TAB!L33=TRUE,TAB!G32,IF(TAB!L33<>TRUE," ")) -> 200
D61: DECLARAÇÃO DE ENCARGOS DE FAMÍLIA PARA FINS DE IMPOSTO DE RENDA
D62: NOME COMPLETO DOS DEPENDENTES | U62: PARENTESCO | AC62: DATA DE NASCIMENTO
D63: =VLOOKUP(DADOS1!$A$3,AUTÔNOMO!$A$4:$AS$4501,28) -> 0 | U63: =VLOOKUP(DADOS1!A3,AUTÔNOMO!$A$4:$AS$4501,29) ->  | AC63: =VLOOKUP(DADOS1!A3,AUTÔNOMO!$A$4:$AS$4501,30) -> 
D64: =VLOOKUP(DADOS1!$A$3,AUTÔNOMO!$A$4:$AS4501,31) ->  | U64: =VLOOKUP(DADOS1!A3,AUTÔNOMO!$A$4:$AS$4501,32) ->  | AC64: =VLOOKUP(DADOS1!A3,AUTÔNOMO!$A$4:$AS$4501,33) -> 
D65: =VLOOKUP(DADOS1!$A$3,AUTÔNOMO!$A$4:$AS$4501,34) ->  | U65: =VLOOKUP(DADOS1!A3,AUTÔNOMO!$A$4:$AS$45001,35) ->  | AC65: =VLOOKUP(DADOS1!A3,AUTÔNOMO!$A$4:$AS$4501,36) -> 
D66: =VLOOKUP(DADOS1!$A$3,AUTÔNOMO!$A$4:$AS$4501,37) ->  | U66: =VLOOKUP(DADOS1!A3,AUTÔNOMO!$A$4:$AS$4501,38) ->  | AC66: =VLOOKUP(DADOS1!A3,AUTÔNOMO!$A$4:$AS$4501,39) -> 
D67: =VLOOKUP(DADOS1!$A$3,AUTÔNOMO!$A$4:$AS4501,40) ->  | U67: =VLOOKUP(DADOS1!A3,AUTÔNOMO!$A$4:$AS$4501,41) ->  | AC67: =VLOOKUP(DADOS1!A3,AUTÔNOMO!$A$4:$AS$4501,42) -> 
D69: LOCAL | K69: DATA | R69: ASSINATURA
D70: =DADOS1!D12 -> 0 | K70: =DADOS1!D15 -> 2014-01-01
D71: =TAB!B33 -> RPA.V07 -atualizado 01/2014 (1) - angelo.tonon@ig.com.br | Q71: MP Nº 83, de 12/12/02, DOU 13/12/02 - IN Nº 87, de 27/03/03, DOU de 28/03/03 - Lei 10.666 de 08/05/03 -Aplicavel a partir de 01/04/2003

Sheet DADOS (hidden)
C1: COMPETENCIA | D1: N° RECIBO
A2: =DADOS1!A2 -> 2 | F2: COR VERMELHA NÃO PODE ALTERAR
A3: =DADOS1!A3 -> 4 | C3: 2008-11-01
C4: 2008-12-01
C5: 2009-01-01
C6: 2009-02-01
C7: 2009-03-01
C8: 2009-04-01
C9: 2009-05-01
C10: 2009-06-01
C11: 2009-07-01
C12: 2009-08-01
C13: 2009-09-01
C14: 2009-10-01 | D14: 012
C15: 2009-11-01 | D15: 013
C16: 2009-12-01 | D16: 014
C17: 2010-01-01 | D17: 015
C18: 2010-02-01 | D18: 016
C19: 2010-03-01 | D19: 017
C20: 2010-04-01 | D20: 018
C21: 2010-05-01 | D21: 019
C22: 2010-06-01 | D22: 020
C23: 2010-07-01 | D23: 021
C24: 2010-08-01 | D24: 022
C25: 2010-09-01 | D25: 023
C26: 2010-10-01 | D26: 024
C27: 2010-11-01 | D27: 025
C28: 2010-12-01 | D28: 026
C29: 2011-01-01 | D29: 027
C30: 2011-02-01 | D30: 028
C31: 2011-03-01 | D31: 029
C32: 2011-04-01 | D32: 030
C33: 2011-05-01 | D33: 031
C34: 2011-06-01 | D34: 032
C35: 2011-07-01 | D35: 033
C36: 2011-08-01 | D36: 034
C37: 2011-09-01 | D37: 035
C38: 2011-10-01 | D38: 036
C39: 2011-11-01 | D39: 037
C40: 2011-12-01 | D40: 038
C41: 2012-01-01 | D41: 039
C42: 2012-02-01 | D42: 040
C43: 2012-03-01 | D43: 041
C44: 2012-04-01 | D44: 042
C45: 2012-05-01 | D45: 043
C46: 2012-06-01 | D46: 044
C47: 2012-07-01 | D47: 045
C48: 2012-08-01 | D48: 046
C49: 2012-09-01 | D49: 047
C50: 2012-10-01 | D50: 048
C51: 2012-11-01 | D51: 049
C52: 2012-12-01 | D52: 050
C53: 2013-01-01 | D53: 051
C54: 2013-02-01 | D54: 052
C55: 2013-03-01 | D55: 053
C56: 2013-04-01 | D56: 054
C57: 2013-05-01 | D57: 055
C58: 2013-06-01 | D58: 056
C59: 2013-07-01 | D59: 057
C60: 2013-08-01 | D60: 058
C61: 2013-09-01 | D61: 059
C62: 2013-10-01 | D62: 060
C63: 2013-11-01 | D63: 061
C64: 2013-12-01 | D64: 062
C65: 2014-01-01 | D65: 063
C66: 2014-02-01 | D66: 064
C67: 2014-03-01 | D67: 065
C68: 2014-04-01 | D68: 066
C69: 2014-05-01 | D69: 067
C70: 2014-06-01 | D70: 068
C71: 2014-07-01 | D71: 069
C72: 2014-08-01 | D72: 070
C73: 2014-09-01 | D73: 071
C74: 2014-10-01 | D74: 072
C75: 2014-11-01 | D75: 073
C76: 2014-12-01 | D76: 074
C77: 2015-01-01 | D77: 075
C78: 2015-02-01 | D78: 076
C79: 2015-03-01 | D79: 077
C80: 2015-04-01 | D80: 078
C81: 2015-05-01 | D81: 079
C82: 2015-06-01 | D82: 080
C83: 2015-07-01 | D83: 081
C84: 2015-08-01 | D84: 082
C85: 2015-09-01 | D85: 083
C86: 2015-10-01 | D86: 084
C87: 2015-11-01 | D87: 085
C88: 2015-12-01 | D88: 086
C89: 2016-01-01 | D89: 087
C90: 2016-02-01 | D90: 088
C91: 2016-03-01 | D91: 089
C92: 2016-04-01 | D92: 090
C93: 2016-05-01 | D93: 091
C94: 2016-06-01 | D94: 092
C95: 2016-07-01 | D95: 093
C96: 2016-08-01 | D96: 094
C97: 2016-09-01 | D97: 095
C98: 2016-10-01 | D98: 096
C99: 2016-11-01 | D99: 097
C100: 2016-12-01 | D100: 098
C101: 2017-01-01 | D101: 099
C102: 2017-02-01 | D102: 100
C103: 2017-03-01 | D103: 101
C104: 2017-04-01 | D104: 102
C105: 2017-05-01 | D105: 103
C106: 2017-06-01 | D106: 104
C107: 2017-07-01 | D107: 105
C108: 2017-08-01 | D108: 106
C109: 2017-09-01 | D109: 107
C110: 2017-10-01 | D110: 108
C111: 2017-11-01 | D111: 109
C112: 2017-12-01 | D112: 110
C113: 2018-01-01 | D113: 111
C114: 2018-02-01 | D114: 112
C115: 2018-03-01 | D115: 113
C116: 2018-04-01 | D116: 114
C117: 2018-05-01 | D117: 115
C118: 2018-06-01 | D118: 116
C119: 2018-07-01 | D119: 117
C120: 2018-08-01 | D120: 118
C121: 2018-09-01 | D121: 119
C122: 2018-10-01 | D122: 120
C123: 2018-11-01 | D123: 121
C124: 2018-12-01 | D124: 122
C125: 2019-01-01 | D125: 123
C126: 2019-02-01 | D126: 124
C127: 2019-03-01 | D127: 125
C128: 2019-04-01 | D128: 126
C129: 2019-05-01 | D129: 127
C130: 2019-06-01 | D130: 128
C131: 2019-07-01 | D131: 129
C132: 2019-08-01 | D132: 130
C133: 2019-09-01 | D133: 131
C134: 2019-10-01 | D134: 132
C135: 2019-11-01 | D135: 133
C136: 2019-12-01 | D136: 134
C137: 2020-01-01 | D137: 135
C138: 2020-02-01 | D138: 136
C139: 2020-03-01 | D139: 137
C140: 2020-04-01 | D140: 138
C141: 2020-05-01 | D141: 139
C142: 2020-06-01 | D142: 140
C143: 2020-07-01 | D143: 141
C144: 2020-08-01 | D144: 142
C145: 2020-09-01 | D145: 143
C146: 2020-10-01 | D146: 144
C147: 2020-11-01 | D147: 145
C148: 2020-12-01 | D148: 146
C149: 2021-01-01 | D149: 147
C150: 2021-02-01 | D150: 148
C151: 2021-03-01 | D151: 149
C152: 2021-04-01 | D152: 150
C153: 2021-05-01 | D153: 151
C154: 2021-06-01 | D154: 152
C155: 2021-07-01 | D155: 153
C156: 2021-08-01 | D156: 154
C157: 2021-09-01 | D157: 155
C158: 2021-10-01 | D158: 156
C159: 2021-11-01 | D159: 157
C160: 2021-12-01 | D160: 158
C161: 2022-01-01 | D161: 159
C162: 2022-02-01 | D162: 160
C163: 2022-03-01 | D163: 161
C164: 2022-04-01 | D164: 162
C165: 2022-05-01 | D165: 163
C166: 2022-06-01 | D166: 164
C167: 2022-07-01 | D167: 165
C168: 2022-08-01 | D168: 166
C169: 2022-09-01 | D169: 167
C170: 2022-10-01 | D170: 168
C171: 2022-11-01 | D171: 169
C172: 2022-12-01 | D172: 170
C173: 2023-01-01 | D173: 171
C174: 2023-02-01 | D174: 172
C175: 2023-03-01 | D175: 173
C176: 2023-04-01 | D176: 174
C177: 2023-05-01 | D177: 175
C178: 2023-06-01 | D178: 176
C179: 2023-07-01 | D179: 177
C180: 2023-08-01 | D180: 178
C181: 2023-09-01 | D181: 179
C182: 2023-10-01 | D182: 180
C183: 2023-11-01 | D183: 181
C184: 2023-12-01 | D184: 182
C185: 2024-01-01 | D185: 183
C186: 2024-02-01 | D186: 184
C187: 2024-03-01 | D187: 185
C188: 2024-04-01 | D188: 186
C189: 2024-05-01 | D189: 187
C190: 2024-06-01 | D190: 188
C191: 2024-07-01 | D191: 189
C192: 2024-08-01 | D192: 190
C193: 2024-09-01 | D193: 191
C194: 2024-10-01 | D194: 192
C195: 2024-11-01 | D195: 193
C196: 2024-12-01 | D196: 194
C197: 2025-01-01 | D197: 195
C198: 2025-02-01 | D198: 196
C199: 2025-03-01 | D199: 197
C200: 2025-04-01 | D200: 198
... 7184 more rows
